fUSD/lending_fUSD_20240420
["ID","MTS","AMOUNT","RATE_DAILY","PERIOD"]
[323079227,1713625914658,-395.7,0.00018904,2]
[323079228,1713625914668,-500.0,0.00018904,2]
[323079229,1713625914677,-637.44,0.00018904,2]
[323079230,1713625914686,-500.0,0.00018904,2]
[323079231,1713625914695,-500.0,0.00018904,2]
[323079232,1713625914704,-500.0,0.00018904,2]
[323079233,1713625914714,-500.0,0.00018904,2]
[323079234,1713625914724,-500.0,0.00018904,2]
[323079235,1713625914733,-500.0,0.00018904,2]
[323079236,1713625914742,-500.0,0.00018904,2]
[323079237,1713625914752,-500.0,0.00018904,2]
[323079238,1713625914761,-500.0,0.00018904,2]
[323079239,1713625914773,-500.0,0.00018904,2]
[323079240,1713625914783,-500.0,0.00018904,2]
[323079241,1713625914791,-500.0,0.00018904,2]
[323079242,1713625914801,-2193.06,0.00018904,2]
[323079243,1713625914810,-242.86,0.00018904,2]
[323079244,1713625914820,-500.0,0.00018904,2]
[323079245,1713625914830,-500.0,0.00018904,2]
[323079246,1713625914839,-521.76,0.00018904,2]
[323079247,1713625914849,-500.35,0.00018904,2]
[323079248,1713625914859,-500.0,0.00018904,2]
[323079249,1713625914868,-500.45,0.00018904,2]
[323079250,1713625914878,-500.0,0.00018904,2]
[323079251,1713625914887,-172.8,0.00018904,2]
[323079252,1713625914896,-500.0,0.00018904,2]
[323079253,1713625914906,-500.0,0.00018904,2]
[323079254,1713625914915,-500.0,0.00018904,2]
[323079255,1713625914924,-500.0,0.00018904,2]
[323079256,1713625914934,-500.0,0.00018904,2]
[323079257,1713625914943,-500.0,0.00018904,2]
[323079258,1713625914952,-500.0,0.00018904,2]
[323079259,1713625914961,-500.0,0.00018904,2]
[323079260,1713625914970,-528.28,0.00018904,2]
[323079261,1713625914979,-567.12,0.00018904,2]
[323079262,1713625914988,-500.0,0.00018904,2]
[323079263,1713625914998,-500.0,0.00018904,2]
[323079264,1713625915007,-564.26,0.00018904,2]
[323079265,1713625915016,-500.0,0.00018904,2]
[323079266,1713625915027,-179.12,0.00018904,2]
[323079267,1713625915036,-485.04,0.00018904,2]
[323079268,1713625915046,-500.0,0.00018904,2]
[323079269,1713625915055,-575.03,0.00018904,2]
[323079270,1713625915064,-571.08,0.00018904,2]
[323079271,1713625915075,-541.63,0.00018904,2]
[323079272,1713625915085,-355.04,0.00018904,2]
[323079273,1713625915094,-500.0,0.00018904,2]
[323079274,1713625915104,-548.16,0.00018904,2]
[323079275,1713625915114,-500.0,0.00018904,2]
[323079276,1713625915122,-500.0,0.00018904,2]
[323079277,1713625915132,-500.0,0.00018904,2]
[323079278,1713625915141,-500.0,0.00018904,2]
[323079279,1713625915151,-500.0,0.00018904,2]
[323079280,1713625915160,-501.63,0.00018904,2]
[323079281,1713625915170,-500.0,0.00018904,2]
[323079282,1713625915179,-500.0,0.00018904,2]
[323079283,1713625915189,-500.0,0.00018904,2]
[323079284,1713625915198,-500.0,0.00018904,2]
[323079285,1713625915207,-507.44,0.00018904,2]
[323079286,1713625915217,-500.0,0.00018904,2]
[323079287,1713625915226,-500.0,0.00018904,2]
[323079288,1713625915235,-585.6,0.00018904,2]
[323079289,1713625915245,-500.0,0.00018904,2]
[323079290,1713625915255,-151.0,0.00018904,2]
[323079291,1713625915264,-267.273713,0.00018904,2]
[323079292,1713625915273,-151.0,0.00018904,2]
[323079293,1713625915282,-500.0,0.00018904,2]
[323079294,1713625915291,-500.0,0.00018904,2]
[323079295,1713625915300,-267.273713,0.00018904,2]
[323079296,1713625915310,-151.0,0.00018904,2]
[323079297,1713625915319,-190.202176,0.00018904,2]
[323079298,1713625915328,-190.202176,0.00018904,2]
[323079299,1713625915340,-500.0,0.00018904,2]
[323079300,1713625915351,-330.55,0.00018904,2]
[323079301,1713625915362,-154.347839,0.00018904,2]
[323079302,1713625915371,-500.0,0.00018904,2]
[323079303,1713625915380,-500.0,0.00018904,2]
[323079304,1713625915390,-295.257801,0.00018904,2]
[323079305,1713625915399,-500.0,0.00018904,2]
[323079306,1713625915408,-295.257801,0.00018904,2]
[323079307,1713625915418,-500.0,0.00018904,2]
[323079308,1713625915427,-500.0,0.00018904,2]
[323079309,1713625915595,-500.0,0.00018904,2]
[323079310,1713625915605,-500.91,0.00018904,2]
[323079311,1713625915614,-151.0,0.00018904,2]
[323079312,1713625915624,-492.32,0.00018904,2]
[323079313,1713625915633,-500.0,0.00018904,2]
[323079314,1713625915642,-500.0,0.00018904,2]
[323079315,1713625915652,-500.0,0.00018904,2]
[323079316,1713625915661,-500.0,0.00018904,2]
[323079317,1713625915671,-500.0,0.00018904,2]
[323079318,1713625915681,-500.0,0.00018904,2]
[323079319,1713625915691,-500.0,0.00018904,2]
[323079320,1713625915701,-536.24,0.00018904,2]
[323079321,1713625915710,-190.15,0.00018904,2]
[323079322,1713625915720,-500.0,0.00018904,2]
[323079323,1713625915729,-500.0,0.00018904,2]
[323079324,1713625915739,-500.0,0.00018904,2]
[323079325,1713625915749,-500.0,0.00018904,2]
[323079326,1713625915759,-280.9,0.00018904,2]
[323079327,1713625915769,-500.0,0.00018904,2]
[323079328,1713625915782,-500.0,0.00018904,2]
[323079329,1713625915793,-500.0,0.00018904,2]
[323079330,1713625915803,-500.0,0.00018904,2]
[323079331,1713625915814,-541.73,0.00018904,2]
[323079332,1713625915824,-583.12,0.00018904,2]
[323079333,1713625915834,-500.0,0.00018904,2]
[323079334,1713625915844,-500.0,0.00018904,2]
[323079335,1713625915854,-555.2,0.00018904,2]
[323079336,1713625915864,-820.69,0.00018904,2]
[323079337,1713625915875,-500.0,0.00018904,2]
[323079338,1713625915885,-500.0,0.00018904,2]
[323079339,1713625915894,-500.0,0.00018904,2]
[323079340,1713625915905,-500.0,0.00018904,2]
[323079341,1713625915916,-500.0,0.00018904,2]
[323079342,1713625915926,-500.0,0.00018904,2]
[323079343,1713625915937,-531.75,0.00018904,2]
[323079344,1713625915948,-500.0,0.00018904,2]
[323079345,1713625915958,-500.0,0.00018904,2]
[323079346,1713625915968,-500.0,0.00018904,2]
[323079347,1713625915978,-228.3,0.00018904,2]
[323079348,1713625915987,-500.0,0.00018904,2]
[323079349,1713625915998,-500.0,0.00018904,2]
[323079350,1713625916008,-127.56907118,0.00018904,2]
[323079351,1713625916249,-617.44092882,0.00018904,2]
[323079352,1713625916259,-500.0,0.00018904,2]
[323079353,1713625916270,-500.0,0.00018904,2]
[323079354,1713625916282,-500.0,0.00018904,2]
[323079355,1713625916291,-714.49,0.00018904,2]
[323079356,1713625916301,-500.0,0.00018904,2]
[323079357,1713625916311,-616.85,0.00018904,2]
[323079358,1713625916321,-621.64,0.00018904,2]
[323079359,1713625916331,-546.75,0.00018904,2]
[323079360,1713625916341,-502.65,0.00018904,2]
[323079361,1713625916351,-500.0,0.00018904,2]
[323079362,1713625916360,-147.84502871,0.00018904,2]
[323079363,1713625916372,-352.15497129,0.00018904,2]
[323079364,1713625916381,-1000.0,0.00019,2]
[323079365,1713625916391,-410.96132098,0.00019,2]
[323079366,1713625916400,-299.36412804,0.00019,2]
[323079367,1713625916415,-275.08637678,0.00019,2]
[323079368,1713625916424,-156.32307611,0.00019,2]
[323079369,1713625916433,-365.8189121,0.00019,2]
[323079370,1713625916443,-150.0,0.00019,2]
[323079371,1713625916452,-500.0,0.00019169,2]
[323079372,1713625916463,-4350.749,0.0001917,2]
[323079373,1713625916472,-2916.552,0.0001917,2]
[323079374,1713625916482,-1019.70909973,0.0001917,2]
[323079375,1713625916493,-5403.68190335,0.0001917,2]
[323079376,1713625916731,-265.15710906,0.00015067,2]
[323079377,1713625916747,-571.34028809,0.00015067,2]
[323079378,1713625916759,-636.94287216,0.00015067,2]
[323079386,1713626638412,176.64,0.0001183,2]
[323079387,1713626681267,-3534.55,0.00012617,2]
[323079388,1713626681291,-275.563401,0.00013684,2]
[323079389,1713626681315,-185.97,0.00013753,2]
[323079390,1713626681338,-250.0,0.00013759,2]
[323079391,1713626681362,-169.11,0.00013785,2]
[323079392,1713626681385,-150.0,0.00013797,2]
[323079393,1713626681409,-800.0,0.00013798,2]
[323079394,1713626681433,-2714.41,0.00013798,2]
[323079395,1713626681458,-196.82,0.00013813,2]
[323079396,1713626681485,-181.05,0.00013817,2]
[323079397,1713626681509,-4035.526599,0.00013873,2]
[323079398,1713626700681,-1666.033601,0.00013873,2]
[323079399,1713626700703,-168.39,0.00013919,2]
[323079400,1713626700725,-3079.50911342,0.00013971,2]
[323079401,1713626700746,-97.06728558,0.00013972,2]
[323079402,1713626717120,-2998.8492905,0.00013971,2]
[323079403,1713626717142,-402.92271442,0.00013972,2]
[323079404,1713626717163,-9275.72,0.00013973,2]
[323079405,1713626717190,-2250.0,0.00014,2]
[323079406,1713626717211,-422.50799508,0.00014,2]
[323079407,1713626718108,-4.3062155,0.00014,2]
[323079408,1713626718132,-176.64,0.00014094,2]
[323079409,1713626718156,-381.26,0.00014536,2]
[323079410,1713626718180,-381.26,0.00014539,2]
[323079411,1713626718205,-381.26,0.00014543,2]
[323079412,1713626718228,-252.92,0.00014543,2]
[323079413,1713626739127,620.244843,0.00014474,2]
[323079414,1713626762834,-381.26,0.00014547,2]
[323079415,1713626762858,-381.26,0.00014551,2]
[323079416,1713626762882,-381.26,0.00014555,2]
[323079417,1713626762905,-381.26,0.00014559,2]
[323079418,1713626762930,-381.26,0.00014562,2]
[323079419,1713626762955,-381.26,0.00014566,2]
[323079420,1713626762980,-381.26,0.0001457,2]
[323079421,1713626763003,-381.26,0.00014574,2]
[323079422,1713626763029,-381.26,0.00014578,2]
[323079423,1713626763055,-381.26,0.00014582,2]
[323079424,1713626763081,-381.26,0.00014586,2]
[323079425,1713626763106,-381.26,0.00014589,2]
[323079426,1713626763132,-381.26,0.00014593,2]
[323079427,1713626763158,-381.26,0.00014597,2]
[323079429,1713626781010,154.89,0.00014585,2]
[323079431,1713626792822,155.0,0.000146,2]
[323079432,1713626809145,426.81421058,0.000146,2]
[323079433,1713626822631,360.0,0.00014484,2]
[323079439,1713626909287,6915.91093829,0.000146,2]
[323079440,1713626913799,1305.85379263,0.00014447,2]
[323079441,1713626942569,2549.39,0.00013962,2]
[323079448,1713627032244,-185.97,0.0001435,2]
[323079449,1713627032255,-317.11477843,0.00014446,2]
[323079450,1713627032265,-50.24100737,0.00014447,2]
[323079451,1713627032274,-204.34283754,0.00014505,2]
[323079452,1713627032285,-242.33137666,0.00014601,2]
[323079453,1713627032299,-138.92862334,0.00014601,2]
[323079454,1713627032309,-381.26,0.00014605,2]
[323079455,1713627032318,-381.26,0.00014609,2]
[323079456,1713627032327,-3568.8183,0.000148,2]
[323079457,1713627032337,-150.0,0.00014899,2]
[323079458,1713627032346,-1079.20464087,0.000149,2]
[323079459,1713627032358,-1707.40804999,0.000149,2]
[323079460,1713627032369,-2006.75060914,0.000149,2]
[323079461,1713627032378,-204.34283754,0.00014967,2]
[323079462,1713627032389,-545.8088,0.00014968,2]
[323079463,1713627032398,-131.63719698,0.00015,2]
[323079488,1713627032757,-125.10025663,0.00015,2]
[323079489,1713627032766,-259.02574337,0.00015064,2]
[323079490,1713627032791,-7282.97432826,0.00015064,2]
[323079491,1713627032802,-1039.35644908,0.00015064,2]
[323079492,1713627032812,-1993.92102893,0.00015065,2]
[323079493,1713627032822,-702.89716768,0.00015065,2]
[323079494,1713627032831,-155.11345119,0.00015065,2]
[323079495,1713627032840,-1472.27207238,0.00015065,2]
[323079496,1713627032851,-155.0,0.00015066,2]
[323079497,1713627032861,-5492.48375908,0.00015067,2]
[323079498,1713627032870,-410.65240953,0.00015067,2]
[323079499,1713627032879,-189.71207442,0.00015067,2]
[323079500,1713627032888,-321.25276615,0.00015067,2]
[323079501,1713627032898,-155.0,0.00015067,2]
[323079502,1713627032907,-39977.16572845,0.00015067,2]
[323079503,1713627032916,-1040.35697366,0.00015067,2]
[323079504,1713627032926,-1040.35697366,0.00015067,2]
[323079505,1713627032935,-382.76,0.00015067,2]
[323079506,1713627032945,-500.0,0.00015068,2]
[323079507,1713627032953,-500.0,0.00015068,2]
[323079508,1713627032963,-500.0,0.00015068,2]
[323079509,1713627032973,-500.0,0.00015068,2]
[323079510,1713627032982,-500.0,0.00015068,2]
[323079511,1713627032991,-500.0,0.00015068,2]
[323079512,1713627033001,-500.0,0.00015068,2]
[323079513,1713627033010,-500.0,0.00015068,2]
[323079514,1713627033019,-500.0,0.00015068,2]
[323079515,1713627033029,-500.0,0.00015068,2]
[323079516,1713627033039,-500.0,0.00015068,2]
[323079517,1713627033049,-500.0,0.00015068,2]
[323079518,1713627033061,-500.0,0.00015068,2]
[323079519,1713627033070,-500.0,0.00015068,2]
[323079520,1713627033080,-500.0,0.00015068,2]
[323079521,1713627033089,-500.0,0.00015068,2]
[323079522,1713627033098,-500.0,0.00015068,2]
[323079523,1713627033108,-278.32900001,0.00015068,2]
[323079524,1713627033119,-240.42513118,0.00015068,2]
[323079525,1713627033130,-500.0,0.00015068,2]
[323079526,1713627033140,-500.0,0.00015068,2]
[323079527,1713627033149,-500.0,0.00015068,2]
[323079528,1713627033159,-500.0,0.00015068,2]
[323079529,1713627033168,-500.0,0.00015068,2]
[323079530,1713627033177,-572.55117335,0.00015068,2]
[323079531,1713627033186,-443.44850961,0.00015068,2]
[323079532,1713627033196,-500.0,0.00015068,2]
[323079533,1713627033206,-500.0,0.00015068,2]
[323079535,1713627033216,-500.0,0.00015068,2]
[323079536,1713627033226,-500.0,0.00015068,2]
[323079537,1713627033235,-500.0,0.00015068,2]
[323079538,1713627033244,-500.0,0.00015068,2]
[323079539,1713627033253,-224.0,0.00015068,2]
[323079540,1713627033262,-500.0,0.00015068,2]
[323079542,1713627033273,-500.0,0.00015068,2]
[323079543,1713627033282,-500.0,0.00015068,2]
[323079544,1713627033291,-500.0,0.00015068,2]
[323079545,1713627033301,-500.0,0.00015068,2]
[323079546,1713627033311,-501.69571805,0.00015068,2]
[323079547,1713627033321,-500.0,0.00015068,2]
[323079548,1713627033330,-500.0,0.00015068,2]
[323079549,1713627033341,-500.0,0.00015068,2]
[323079550,1713627033350,-468.62,0.00015068,2]
[323079551,1713627033359,-500.0,0.00015068,2]
[323079552,1713627033368,-437.69010869,0.00015068,2]
[323079553,1713627033377,-182.7,0.00015158,2]
[323079554,1713627033387,-159.02,0.00015229,2]
[323079555,1713627033397,-434.06108,0.00015256,2]
[323079556,1713627033406,-172.043865,0.00015256,2]
[323079557,1713627033416,-170.060617,0.00015256,2]
[323079558,1713627033425,-150.260719,0.00015256,2]
[323079559,1713627033435,-589.103659,0.00015256,2]
[323079560,1713627033444,-447.644347,0.00015256,2]
[323079561,1713627033455,-211.402465,0.00015256,2]
[323079562,1713627033464,-150.0,0.00015256,2]
[323079563,1713627033474,-500.0,0.00015342,2]
[323079564,1713627033483,-500.0,0.00015342,2]
[323079565,1713627033494,-500.0,0.00015342,2]
[323079566,1713627033504,-500.0,0.00015342,2]
[323079567,1713627033514,-500.0,0.00015342,2]
[323079568,1713627033523,-500.0,0.00015342,2]
[323079569,1713627033533,-500.0,0.00015342,2]
[323079570,1713627033543,-500.0,0.00015342,2]
[323079571,1713627033553,-500.0,0.00015342,2]
[323079572,1713627033563,-500.0,0.00015342,2]
[323079573,1713627033572,-500.0,0.00015342,2]
[323079574,1713627033581,-500.0,0.00015342,2]
[323079575,1713627033591,-357.29172399,0.00015342,2]
[323079576,1713627033601,-500.0,0.00015342,2]
[323079577,1713627033611,-500.0,0.00015342,2]
[323079578,1713627033620,-434.06108,0.00015447,2]
[323079579,1713627033629,-589.103659,0.00015447,2]
[323079580,1713627033640,-447.644347,0.00015447,2]
[323079581,1713627033650,-211.402465,0.00015447,2]
[323079582,1713627033660,-172.043865,0.0001551,2]
[323079583,1713627033669,-150.260719,0.0001551,2]
[323079584,1713627033679,-2229.8601,0.00015515,2]
[323079585,1713627033688,-800.0,0.00015523,2]
[323079586,1713627033697,-424.86,0.00015564,2]
[323079587,1713627033706,-154.74,0.00015605,3]
[323079588,1713627033715,-464.22,0.00015605,3]
[323079589,1713627033724,-157.2626637,0.00015614,2]
[323079590,1713627033733,-160.92,0.00015614,2]
[323079591,1713627033742,-506.51995861,0.00015615,2]
[323079592,1713627033751,-500.0,0.00015615,2]
[323079593,1713627033760,-501.06622591,0.00015615,2]
[323079594,1713627033770,-500.0,0.00015615,2]
[323079595,1713627033779,-500.0,0.00015615,2]
[323079596,1713627033788,-500.0,0.00015615,2]
[323079597,1713627033797,-500.0,0.00015615,2]
[323079598,1713627033806,-500.0,0.00015615,2]
[323079599,1713627033815,-500.0,0.00015615,2]
[323079600,1713627033824,-500.0,0.00015615,2]
[323079601,1713627033833,-218.74433541,0.00015615,2]
[323079602,1713627033845,-500.0,0.00015615,2]
[323079603,1713627033857,-500.0,0.00015615,2]
[323079604,1713627033865,-500.0,0.00015615,2]
[323079605,1713627033874,-191.75,0.00015615,2]
[323079606,1713627033883,-500.0,0.00015615,2]
[323079607,1713627033893,-255.03,0.00015615,2]
[323079608,1713627033902,-500.0,0.00015615,2]
[323079609,1713627033911,-216.0,0.00015615,2]
[323079610,1713627033921,-500.0,0.00015615,2]
[323079611,1713627033929,-500.0,0.00015615,2]
[323079612,1713627033938,-500.0,0.00015615,2]
[323079613,1713627033949,-282.08,0.00015615,2]
[323079614,1713627033959,-500.0,0.00015615,2]
[323079615,1713627033968,-500.0,0.00015615,2]
[323079616,1713627033977,-500.0,0.00015615,2]
[323079617,1713627033987,-500.0,0.00015615,2]
[323079618,1713627033997,-500.0,0.00015615,2]
[323079619,1713627034006,-500.0,0.00015615,2]
[323079620,1713627034016,-500.0,0.00015615,2]
[323079621,1713627034025,-500.0,0.00015615,2]
[323079622,1713627034034,-500.0,0.00015615,2]
[323079623,1713627034043,-500.0,0.00015615,2]
[323079624,1713627034053,-501.54371679,0.00015615,2]
[323079625,1713627034063,-500.0,0.00015615,2]
[323079626,1713627034072,-500.0,0.00015615,2]
[323079627,1713627034081,-500.0,0.00015615,2]
[323079628,1713627034090,-500.0,0.00015615,2]
[323079629,1713627034100,-188.14,0.00015615,2]
[323079630,1713627034109,-500.0,0.00015615,2]
[323079631,1713627034120,-500.0,0.00015615,2]
[323079632,1713627034131,-500.0,0.00015615,2]
[323079633,1713627034141,-500.0,0.00015615,2]
[323079634,1713627034150,-491.24694429,0.00015615,2]
[323079635,1713627034159,-318.44843734,0.00015615,2]
[323079636,1713627034170,-522.88124465,0.00015615,2]
[323079637,1713627034179,-500.0,0.00015615,2]
[323079638,1713627034188,-500.0,0.00015615,2]
[323079639,1713627034198,-500.0,0.00015615,2]
[323079640,1713627034208,-500.0,0.00015615,2]
[323079641,1713627034217,-500.0,0.00015615,2]
[323079642,1713627034226,-503.26,0.00015615,2]
[323079643,1713627034236,-500.0,0.00015615,2]
[323079644,1713627034245,-500.0,0.00015615,2]
[323079645,1713627034254,-500.0,0.00015615,2]
[323079646,1713627034263,-500.0,0.00015615,2]
[323079647,1713627034273,-500.0,0.00015615,2]
[323079648,1713627034282,-500.66125473,0.00015615,2]
[323079649,1713627034291,-500.0,0.00015615,2]
[323079650,1713627034300,-500.0,0.00015615,2]
[323079651,1713627034309,-500.0,0.00015615,2]
[323079652,1713627034318,-500.0,0.00015615,2]
[323079653,1713627034327,-500.0,0.00015615,2]
[323079654,1713627034336,-1250.0,0.00015615,2]
[323079655,1713627034345,-500.0,0.00015615,2]
[323079656,1713627034355,-500.0,0.00015615,2]
[323079657,1713627034364,-500.0,0.00015615,2]
[323079658,1713627034374,-500.0,0.00015615,2]
[323079659,1713627034383,-500.0,0.00015615,2]
[323079660,1713627034392,-500.0,0.00015615,2]
[323079661,1713627034402,-500.0,0.00015615,2]
[323079662,1713627034411,-500.0,0.00015615,2]
[323079663,1713627034420,-500.0,0.00015615,2]
[323079664,1713627034430,-500.0,0.00015615,2]
[323079665,1713627034440,-500.0,0.00015615,2]
[323079666,1713627034453,-500.0,0.00015615,2]
[323079667,1713627034462,-500.0,0.00015615,2]
[323079668,1713627034471,-500.0,0.00015615,2]
[323079669,1713627034481,-500.0,0.00015615,2]
[323079670,1713627034490,-298.96985826,0.00015615,2]
[323079702,1713627038419,-426.81421058,0.00015,2]
[323079703,1713627038429,-9.82050098,0.00015615,2]
[323079704,1713627038441,-191.20964076,0.00015615,2]
[323079705,1713627038450,-317.95825286,0.00015615,2]
[323079706,1713627038461,-182.04174714,0.00015615,2]
[323079707,1713627038471,-500.0,0.00015615,2]
[323079708,1713627038480,-2.20015343,0.00015615,2]
[323079709,1713627038498,-501.72735715,0.00015615,2]
[323079710,1713627038508,-500.0,0.00015615,2]
[323079711,1713627038517,-500.0,0.00015615,2]
[323079712,1713627038526,-439.21773849,0.00015615,2]
[323079713,1713627038537,-60.78226151,0.00015615,2]
[323079714,1713627038546,-500.0,0.00015615,2]
[323079715,1713627038555,-500.0,0.00015615,2]
[323079716,1713627038565,-500.0,0.00015615,2]
[323079717,1713627038574,-500.0,0.00015615,2]
[323079718,1713627038583,-500.0,0.00015615,2]
[323079719,1713627038592,-500.0,0.00015615,2]
[323079720,1713627038601,-502.33944574,0.00015615,2]
[323079721,1713627038610,-500.0,0.00015615,2]
[323079722,1713627038620,-500.0,0.00015615,2]
[323079723,1713627038629,-576.00822878,0.00015615,2]
[323079724,1713627038640,-500.0,0.00015615,2]
[323079725,1713627038650,-500.0,0.00015615,2]
[323079726,1713627038660,-500.0,0.00015615,2]
[323079727,1713627038669,-500.0,0.00015615,2]
[323079729,1713627038679,-500.0,0.00015615,2]
[323079731,1713627038688,-330.04199866,0.00015615,2]
[323079732,1713627038700,-169.95800134,0.00015615,2]
[323079733,1713627038709,-500.0,0.00015615,2]
[323079734,1713627038719,-500.0,0.00015615,2]
[323079735,1713627038728,-500.0,0.00015615,2]
[323079736,1713627038738,-500.0,0.00015615,2]
[323079737,1713627038747,-500.0,0.00015615,2]
[323079738,1713627038757,-461.91671866,0.00015615,2]
[323079739,1713627038770,-38.08328134,0.00015615,2]
[323079740,1713627038779,-500.0,0.00015615,2]
[323079741,1713627038788,-500.0,0.00015615,2]
[323079742,1713627038798,-500.67054721,0.00015615,2]
[323079743,1713627038807,-500.0,0.00015615,2]
[323079744,1713627038817,-500.0,0.00015615,2]
[323079745,1713627038826,-500.20997657,0.00015615,2]
[323079746,1713627038835,-500.2607737,0.00015615,2]
[323079747,1713627038845,-500.0,0.00015615,2]
[323079748,1713627038855,-286.70703877,0.00015615,2]
[323079749,1713627038864,-603.84454169,0.00015615,2]
[323079750,1713627038874,-500.0,0.00015615,2]
[323079751,1713627038883,-500.0,0.00015615,2]
[323079752,1713627038892,-500.0,0.00015615,2]
[323079753,1713627038901,-500.0,0.00015615,2]
[323079754,1713627038910,-500.0,0.00015615,2]
[323079755,1713627038920,-500.0,0.00015615,2]
[323079756,1713627038929,-500.0,0.00015615,2]
[323079757,1713627038938,-500.33343621,0.00015615,2]
[323079758,1713627038947,-500.0,0.00015615,2]
[323079759,1713627038956,-500.36527683,0.00015615,2]
[323079760,1713627038966,-500.0,0.00015615,2]
[323079761,1713627038975,-500.0,0.00015615,2]
[323079762,1713627038984,-500.0,0.00015615,2]
[323079763,1713627038993,-500.0,0.00015615,2]
[323079764,1713627039003,-500.0,0.00015615,2]
[323079765,1713627039012,-500.0,0.00015615,2]
[323079766,1713627039021,-500.0,0.00015615,2]
[323079767,1713627039030,-500.0,0.00015615,2]
[323079768,1713627039040,-500.0,0.00015615,2]
[323079769,1713627039049,-500.0,0.00015615,2]
[323079770,1713627039059,-500.0,0.00015615,2]
[323079771,1713627039069,-500.0,0.00015615,2]
[323079772,1713627039078,-500.0,0.00015615,2]
[323079773,1713627039088,-500.0,0.00015615,2]
[323079774,1713627039097,-500.0,0.00015615,2]
[323079775,1713627039106,-500.0,0.00015615,2]
[323079776,1713627039115,-500.0,0.00015615,2]
[323079777,1713627039125,-500.0,0.00015615,2]
[323079778,1713627039137,-500.0,0.00015615,2]
[323079779,1713627039146,-500.0,0.00015615,2]
[323079780,1713627039155,-500.0,0.00015615,2]
[323079781,1713627039165,-500.0,0.00015615,2]
[323079782,1713627039174,-500.0,0.00015615,2]
[323079783,1713627039184,-500.0,0.00015615,2]
[323079784,1713627039193,-500.0,0.00015615,2]
[323079785,1713627039203,-571.07861947,0.00015615,2]
[323079786,1713627039214,-500.0,0.00015615,2]
[323079787,1713627039223,-176.4879011,0.00015615,2]
[323079788,1713627039232,-500.0,0.00015615,2]
[323079789,1713627039243,-500.0,0.00015615,2]
[323079790,1713627039253,-500.0,0.00015615,2]
[323079791,1713627039263,-500.0,0.00015615,2]
[323079792,1713627039274,-500.0,0.00015615,2]
[323079793,1713627039283,-500.0,0.00015615,2]
[323079794,1713627039292,-500.0,0.00015615,2]
[323079795,1713627039302,-822.4,0.00015615,2]
[323079796,1713627039312,-500.0,0.00015615,2]
[323079797,1713627039322,-311.56017321,0.00015615,2]
[323079798,1713627039331,-500.0,0.00015615,2]
[323079799,1713627039340,-461.17977541,0.00015615,2]
[323079800,1713627039351,-500.0,0.00015615,2]
[323079801,1713627039362,-379.70778151,0.00015615,2]
[323079802,1713627039371,-500.0,0.00015615,2]
[323079803,1713627039381,-500.0,0.00015615,2]
[323079804,1713627039392,-500.0,0.00015615,2]
[323079805,1713627039402,-500.0,0.00015615,2]